bitfinex/quotes_BTCUSD_20240921
["timestamp","ask_amount","ask_price","bid_price","bid_amount"]
[1726884030580,0.00265,62906.0,62905.0,0.29105367]
[1726884035151,0.00265,62906.0,62905.0,0.2942323]
[1726884037778,0.00265,62906.0,62905.0,0.29105367]
[1726884043415,0.00265,62906.0,62905.0,0.47686988]
[1726884043640,0.00265,62906.0,62905.0,0.47369124]
[1726884044400,0.00165,62906.0,62905.0,0.46569124]
[1726884044865,0.00265,62906.0,62905.0,0.46569124]
[1726884049589,0.00265,62906.0,62905.0,0.54369124]
[1726884049989,0.00265,62906.0,62905.0,0.64369124]
[1726884050580,0.00165,62906.0,62905.0,0.64369124]
[1726884050980,0.00165,62906.0,62905.0,0.64569124]
[1726884061716,0.00165,62906.0,62905.0,0.69797818]
[1726884062335,0.00165,62906.0,62905.0,0.64569124]
[1726884062751,0.00165,62906.0,62905.0,0.69797494]
[1726884063910,0.00165,62906.0,62905.0,0.64569124]
[1726884064155,0.00165,62906.0,62905.0,0.69797223]
[1726884064774,0.00165,62906.0,62905.0,0.46305367]
[1726884065814,0.00165,62906.0,62905.0,0.46505367]
[1726884072081,0.00165,62906.0,62905.0,0.58351478]
[1726884074236,0.00165,62906.0,62905.0,0.28805367]
[1726884081580,0.00165,62906.0,62905.0,0.28605367]
[1726884081774,0.00165,62906.0,62905.0,0.28805367]
[1726884082524,0.00165,62906.0,62905.0,0.28605367]
[1726884084805,0.00165,62906.0,62905.0,0.18605367]
[1726884085666,0.00465,62906.0,62905.0,0.18605367]
[1726884103164,0.00465,62906.0,62905.0,0.18805367]
[1726884103379,0.00465,62906.0,62905.0,0.18605367]
[1726884108610,0.00465,62906.0,62905.0,0.18923247]
[1726884109396,0.00465,62906.0,62905.0,0.18605367]
[1726884118876,0.10095,62906.0,62905.0,0.18605367]
[1726884120537,0.29641111,62906.0,62901.0,0.000825]
[1726884120785,0.11846111,62903.0,62901.0,0.000825]
[1726884121270,0.0963,62902.0,62897.0,0.01466648]
[1726884121507,0.0963,62902.0,62898.0,0.17215485]
[1726884121786,0.0963,62902.0,62899.0,0.023]
[1726884122057,0.0963,62902.0,62900.0,0.16305367]
[1726884122348,0.0963,62902.0,62901.0,0.023]
[1726884124637,0.1043,62902.0,62901.0,0.024]
[1726884136367,0.09903785,62902.0,62901.0,0.024]
[1726884140552,0.21749896,62902.0,62901.0,0.001]
[1726884141834,0.09903785,62902.0,62901.0,0.001]
[1726884142721,0.09903785,62902.0,62901.0,0.024825]
[1726884142917,0.10068785,62902.0,62901.0,0.024825]
[1726884144283,0.00965,62902.0,62901.0,0.024825]
[1726884151391,0.10305,62902.0,62901.0,0.001825]
[1726884152091,0.09505,62902.0,62901.0,0.000825]
[1726884153226,0.10305,62902.0,62901.0,0.001825]
[1726884153704,0.09505,62902.0,62901.0,0.000825]
[1726884153945,0.09605,62902.0,62901.0,0.000825]
[1726884154643,0.11485194,62902.0,62901.0,0.000825]
[1726884155841,0.09605,62902.0,62901.0,0.000825]
[1726884163821,0.00265,62902.0,62901.0,0.000825]
[1726884164056,0.00265,62902.0,62901.0,0.18687867]
[1726884164276,0.00265,62902.0,62901.0,0.19005767]
[1726884165387,0.00165,62902.0,62901.0,0.36245767]
[1726884165623,0.00165,62902.0,62901.0,0.48265921]
[1726884165854,0.00165,62906.0,62905.0,0.23676111]
[1726884166068,0.00165,62906.0,62905.0,0.42637384]
[1726884166284,0.00165,62906.0,62905.0,0.42319532]
[1726884167000,0.00165,62906.0,62905.0,0.52319532]
[1726884167240,0.23846808,62917.0,62916.0,0.002]
[1726884167470,0.00165,62918.0,62917.0,0.24346111]
[1726884167696,0.00165,62918.0,62917.0,0.61933945]
[1726884167916,0.00165,62918.0,62917.0,0.60029532]
[1726884169714,0.00265,62918.0,62917.0,0.60729532]
[1726884171621,0.00265,62918.0,62917.0,0.58391478]
[1726884171850,1.19985464,62922.0,62921.0,0.33666111]
[1726884172092,0.99054276,62922.0,62921.0,0.49971478]
[1726884172302,0.6012148,62922.0,62921.0,0.49971478]
[1726884172545,0.44901459,62922.0,62921.0,0.57100571]
[1726884172774,0.44901459,62922.0,62921.0,0.53154478]
[1726884172992,0.44901459,62922.0,62921.0,0.53454478]
[1726884174065,0.44901459,62922.0,62921.0,0.5964833]
[1726884174288,0.44901459,62922.0,62921.0,0.5934833]
[1726884174767,0.45001459,62922.0,62921.0,0.6074833]
[1726884175186,0.44901459,62922.0,62921.0,0.5934833]
[1726884175616,0.45001459,62922.0,62921.0,0.6074833]
[1726884177812,0.45001459,62922.0,62921.0,0.62589311]
[1726884178026,0.45001459,62922.0,62921.0,0.5736533]
[1726884178733,0.45166459,62922.0,62921.0,0.5736533]
[1726884178955,0.45066459,62922.0,62921.0,0.5596533]
[1726884179397,0.45066459,62922.0,62921.0,0.5746533]
[1726884180480,0.45066459,62922.0,62921.0,0.19905367]
[1726884180697,0.45066459,62922.0,62921.0,0.17805367]
[1726884180910,0.45066459,62922.0,62921.0,0.16505367]
[1726884181132,0.45166459,62922.0,62921.0,0.3584533]
[1726884181574,0.45066459,62922.0,62921.0,0.3454533]
[1726884181787,0.45066459,62922.0,62921.0,0.5616533]
[1726884181998,0.45166459,62922.0,62921.0,0.5696533]
[1726884182486,0.45166459,62922.0,62921.0,0.5616533]
[1726884182487,0.45066459,62922.0,62921.0,0.5616533]
[1726884182704,0.38530979,62922.0,62921.0,0.5616533]
[1726884183801,0.38630979,62922.0,62921.0,0.5696533]
[1726884189667,0.37199683,62922.0,62921.0,0.6014833]
[1726884189892,0.33347482,62922.0,62921.0,0.6014833]
[1726884190601,0.33247482,62922.0,62921.0,0.5934833]
[1726884191037,0.33347482,62922.0,62921.0,0.6074833]
[1726884191254,0.27271861,62922.0,62921.0,0.6074833]
[1726884191467,0.15107421,62922.0,62921.0,0.5934833]
[1726884191676,0.15207421,62922.0,62921.0,0.6074833]
[1726884192332,0.15207421,62922.0,62921.0,0.80050168]
[1726884193405,0.04244673,62922.0,62921.0,0.80050168]
[1726884194068,0.04244673,62922.0,62921.0,0.73844867]
[1726884194289,0.001652,62923.0,62921.0,0.73844867]
[1726884194290,0.001652,62923.0,62922.0,0.13383]
[1726884194538,0.001652,62923.0,62922.0,0.39556094]
[1726884194766,0.001652,62923.0,62922.0,0.39238367]
[1726884195425,0.001652,62923.0,62922.0,0.42938367]
[1726884198071,0.001652,62923.0,62922.0,0.62237934]
[1726884198525,0.001652,62923.0,62922.0,0.64114614]
[1726884204097,0.23846808,62938.0,62937.0,0.002]
[1726884204307,0.23846808,62938.0,62937.0,0.30640029]
[1726884204517,0.0998,62940.0,62938.0,0.023]
[1726884204714,0.0998,62940.0,62939.0,0.18605367]
[1726884207078,0.0998,62940.0,62939.0,0.18705367]
[1726884207530,0.0998,62940.0,62939.0,0.25813368]
[1726884207944,0.0998,62940.0,62939.0,0.18705367]
[1726884208155,0.0998,62940.0,62939.0,0.25843101]
[1726884211518,0.0998,62940.0,62939.0,0.18705367]
[1726884211722,0.0998,62940.0,62939.0,0.23464248]
[1726884212536,0.0998,62940.0,62939.0,0.23464384]
[1726884212835,0.10145,62940.0,62939.0,0.23464384]
[1726884215517,0.10145,62940.0,62939.0,0.23464578]
[1726884215947,0.10145,62940.0,62939.0,0.3529924]
[1726884216177,0.10145,62940.0,62939.0,0.30540029]
[1726884216468,0.10145,62940.0,62939.0,0.38196572]
[1726884216677,0.00165,62940.0,62939.0,0.30740029]
[1726884217147,0.00165,62940.0,62939.0,0.37878845]
[1726884217258,0.00165,62940.0,62939.0,0.30540029]
[1726884217488,0.00165,62940.0,62939.0,0.37678506]
[1726884219176,0.00165,62940.0,62939.0,0.18705367]
[1726884219403,0.09975,62940.0,62939.0,0.18705367]
[1726884220264,0.09975,62940.0,62939.0,0.25843844]
[1726884220484,0.09975,62940.0,62939.0,0.37678506]
[1726884222396,0.00165,62940.0,62939.0,0.30540029]
[1726884222816,0.00165,62940.0,62939.0,0.30857743]
[1726884223286,0.00165,62940.0,62939.0,0.37997593]
[1726884223521,0.00165,62940.0,62939.0,0.37579879]
[1726884223755,0.00165,62940.0,62939.0,0.38279879]
[1726884224208,0.00165,62940.0,62939.0,0.38479879]
[1726884224728,0.00165,62940.0,62939.0,0.31340029]
[1726884224964,0.00165,62940.0,62939.0,0.31657743]
[1726884225194,0.00165,62940.0,62939.0,0.30440029]
[1726884225414,0.00165,62940.0,62939.0,0.40478542]
[1726884225645,0.00165,62940.0,62939.0,0.43241027]
[1726884226366,0.00165,62940.0,62939.0,0.41340029]
[1726884228890,0.00165,62940.0,62939.0,0.43238384]
[1726884229330,0.00165,62940.0,62939.0,0.57519582]
[1726884229545,0.00165,62940.0,62939.0,0.43238384]
[1726884233968,0.00165,62940.0,62939.0,0.29305367]
[1726884234185,0.00165,62940.0,62939.0,0.53039394]
[1726884234608,0.00165,62940.0,62939.0,0.41140029]
[1726884234853,0.00165,62940.0,62939.0,0.41340029]
[1726884261948,0.00165,62940.0,62939.0,0.55615698]
[1726884262609,0.00165,62940.0,62939.0,0.55623342]
[1726884263495,0.00165,62940.0,62939.0,0.41340029]
[1726884263706,0.00165,62940.0,62939.0,0.55623952]
[1726884264607,0.00165,62940.0,62939.0,0.41340029]
[1726884267618,0.00165,62940.0,62939.0,0.40640029]
[1726884268239,0.00165,62940.0,62939.0,0.41640029]
[1726884271384,0.00165,62940.0,62939.0,0.51460029]
[1726884271597,0.00165,62940.0,62939.0,0.62730234]
[1726884272040,0.00165,62940.0,62939.0,0.41640029]
[1726884273581,0.00165,62940.0,62939.0,0.62730234]
[1726884274404,0.00165,62940.0,62939.0,0.41640029]
[1726884275602,0.00165,62940.0,62939.0,0.62730234]
[1726884276025,0.00165,62940.0,62939.0,0.41640029]
[1726884276642,0.00165,62940.0,62939.0,0.62730234]
[1726884276927,0.00165,62940.0,62939.0,0.41640029]
[1726884277148,0.00165,62940.0,62939.0,0.62742484]
[1726884277366,0.00165,62940.0,62939.0,0.41640029]
[1726884287715,0.00165,62940.0,62939.0,0.29605367]
[1726884287927,0.00165,62940.0,62939.0,0.41440029]
[1726884288365,1e-06,62940.0,62939.0,0.41440029]
[1726884288578,1e-06,62940.0,62939.0,0.55734014]
[1726884289003,0.08999493,62944.0,62943.0,0.11834662]
[1726884289214,0.08999493,62944.0,62943.0,0.32028256]
[1726884289657,0.08999493,62944.0,62943.0,0.30440029]
[1726884290078,0.08999493,62944.0,62943.0,0.32028256]
[1726884290287,0.08999493,62944.0,62943.0,0.32628256]
[1726884290696,0.08999493,62944.0,62943.0,0.31040029]
[1726884290928,0.08999493,62944.0,62943.0,0.32228124]
[1726884291111,0.08999493,62944.0,62943.0,0.31140029]
[1726884293085,0.08999493,62944.0,62943.0,0.30940029]
[1726884294141,0.08999493,62944.0,62943.0,0.32528067]
[1726884294925,0.08999493,62944.0,62943.0,0.32528069]
[1726884295554,0.001652,62946.0,62945.0,0.023]
[1726884295783,0.001652,62946.0,62945.0,0.18605367]
[1726884296006,0.001652,62946.0,62945.0,0.20193301]
[1726884296334,0.001652,62946.0,62945.0,0.18605367]
[1726884296800,0.001652,62946.0,62945.0,0.20493284]
[1726884296972,0.001652,62946.0,62945.0,0.18905367]
[1726884297170,0.001652,62946.0,62945.0,0.20493284]
[1726884298101,0.001652,62946.0,62945.0,0.18905367]
[1726884298448,0.001652,62946.0,62945.0,0.20693284]
[1726884298631,0.001652,62946.0,62945.0,0.19105367]
[1726884299057,0.001652,62946.0,62945.0,0.18905367]
[1726884299916,0.001652,62946.0,62945.0,0.1942306]
[1726884300564,0.001652,62946.0,62945.0,0.1922306]
[1726884300793,0.001652,62946.0,62945.0,0.18905367]
[1726884303191,0.001652,62946.0,62945.0,0.30740029]
[1726884305165,0.001652,62946.0,62945.0,0.30940029]
[1726884305762,0.001652,62946.0,62945.0,0.30740029]
[1726884312347,0.001652,62946.0,62945.0,0.18905367]
[1726884312802,0.001652,62946.0,62945.0,0.28435308]
[1726884313170,0.001652,62946.0,62945.0,0.28135308]
[1726884313380,0.001652,62946.0,62945.0,0.18605367]
[1726884313998,0.001652,62946.0,62945.0,0.28134335]
[1726884314207,0.001652,62946.0,62945.0,0.28134409]
[1726884314403,0.001652,62946.0,62945.0,0.18905367]
[1726884314606,0.001652,62946.0,62945.0,0.28433837]
[1726884315663,0.001652,62946.0,62945.0,0.18605367]
[1726884316072,0.001652,62946.0,62945.0,0.18905367]
[1726884316611,0.001652,62946.0,62945.0,0.26050994]
[1726884316822,0.001652,62946.0,62945.0,0.28433837]
[1726884317029,0.001652,62946.0,62945.0,0.18905367]
[1726884317452,0.092152,62946.0,62945.0,0.23669031]
[1726884317696,0.092152,62946.0,62945.0,0.18905367]
[1726884318100,0.09955057,62946.0,62945.0,0.18905367]
[1726884318838,0.09955057,62946.0,62945.0,0.18605367]
[1726884319057,0.09955057,62946.0,62945.0,0.18905367]
[1726884319677,0.092152,62946.0,62945.0,0.18905367]
[1726884320090,0.09955057,62946.0,62945.0,0.18905367]
[1726884320704,0.09955057,62946.0,62945.0,0.18605367]
[1726884320909,0.093152,62946.0,62945.0,0.18605367]
[1726884321560,0.093152,62946.0,62945.0,0.23368511]
[1726884321989,0.093152,62946.0,62945.0,0.18605367]
[1726884322202,0.093152,62946.0,62945.0,0.23368511]
[1726884323046,0.093152,62946.0,62945.0,0.18605367]
[1726884324291,0.002652,62946.0,62945.0,0.30440029]
[1726884324518,0.002652,62946.0,62945.0,0.35203173]
[1726884324704,0.002652,62946.0,62945.0,0.30440029]
[1726884324915,0.002652,62946.0,62945.0,0.35203173]
[1726884325345,0.002652,62946.0,62945.0,0.30440029]
[1726884325612,0.002652,62946.0,62945.0,0.35201376]
[1726884325828,0.002652,62946.0,62945.0,0.30440029]
[1726884326259,0.002652,62946.0,62945.0,0.37584745]
[1726884326474,0.002652,62946.0,62945.0,0.30440029]
[1726884328017,0.002652,62946.0,62945.0,0.35201312]
[1726884328625,0.002652,62946.0,62945.0,0.35201427]
[1726884328969,0.001652,62946.0,62945.0,0.35201427]
[1726884330205,0.001652,62946.0,62945.0,0.30440029]
[1726884330418,0.001652,62946.0,62945.0,0.35201427]
[1726884330615,0.001652,62946.0,62945.0,0.35201457]
[1726884330817,0.001652,62946.0,62945.0,0.30440029]
[1726884331217,0.002652,62946.0,62945.0,0.30440029]
[1726884331941,0.001652,62946.0,62945.0,0.18605367]
[1726884332039,0.003652,62946.0,62945.0,0.18605367]
[1726884354121,0.094752,62946.0,62945.0,0.18605367]
[1726884354522,0.10499761,62946.0,62945.0,0.18605367]
[1726884354748,0.10499761,62946.0,62944.0,0.000825]
[1726884354915,0.10499761,62946.0,62945.0,0.023]
[1726884355542,0.10299761,62946.0,62945.0,0.023]
[1726884355928,0.10399761,62946.0,62945.0,0.023]
[1726884357249,0.10299761,62946.0,62945.0,0.023]
[1726884357445,0.10499761,62946.0,62945.0,0.023]
[1726884358466,0.10499761,62946.0,62944.0,0.16387867]
[1726884358467,0.09319761,62946.0,62944.0,0.000825]
[1726884358661,0.20944662,62945.0,62944.0,0.000825]
[1726884358879,0.21965331,62945.0,62944.0,0.000825]
[1726884360171,0.21965331,62945.0,62925.0,0.11909245]
[1726884360172,0.1704,62932.0,62931.0,0.23846808]
[1726884360610,0.18132997,62932.0,62931.0,0.23846808]
[1726884360831,0.18132997,62932.0,62922.0,0.000825]
[1726884360832,0.0911,62931.0,62922.0,0.000825]
[1726884361064,0.0911,62931.0,62925.0,0.01433651]
[1726884361296,0.09022997,62932.0,62924.0,0.01433648]
[1726884361297,0.11834662,62926.0,62924.0,0.01433648]
[1726884361544,0.0911,62925.0,62923.0,0.000825]
[1726884361767,0.10189197,62925.0,62923.0,0.000825]
[1726884362324,0.10189197,62925.0,62924.0,0.95347063]
[1726884362542,0.10189197,62925.0,62923.0,0.000825]
[1726884362765,0.0911,62925.0,62923.0,0.000825]
[1726884362984,0.01079197,62924.0,62923.0,0.000825]
[1726884363453,0.01079197,62924.0,62923.0,0.023825]
[1726884363668,0.003,62925.0,62923.0,0.023825]
[1726884363912,0.01075632,62924.0,62923.0,0.023825]
[1726884364581,0.005,62924.0,62923.0,0.023825]
[1726884364793,0.01575632,62924.0,62923.0,0.023825]
[1726884364983,0.005,62924.0,62923.0,0.023825]
[1726884365230,0.01075632,62924.0,62923.0,0.023825]
[1726884365507,0.005,62924.0,62923.0,0.024825]
[1726884365984,0.01577293,62924.0,62923.0,0.024825]
[1726884366215,0.005,62924.0,62923.0,0.024825]
[1726884366437,0.0157728,62924.0,62923.0,0.024825]
[1726884366652,0.0107728,62924.0,62923.0,0.023825]
[1726884366862,0.0911,62930.0,62923.0,0.023825]
[1726884367066,0.0107728,62924.0,62923.0,0.023825]
[1726884367292,0.003,62924.0,62923.0,0.023825]
[1726884367501,0.01377562,62924.0,62923.0,0.023825]
[1726884367708,0.01077562,62924.0,62923.0,0.023825]
[1726884368119,0.0911,62930.0,62923.0,0.028825]
[1726884368337,0.01077562,62924.0,62923.0,0.028825]
[1726884368542,0.0911,62930.0,62923.0,0.028825]
[1726884368754,0.01077562,62924.0,62923.0,0.028825]
[1726884368959,0.0911,62930.0,62923.0,0.028825]
[1726884369170,0.01077562,62924.0,62923.0,0.023825]
[1726884369385,0.0911,62930.0,62923.0,0.023825]
[1726884369632,0.01077562,62924.0,62923.0,0.023825]
[1726884370113,0.11834662,62924.0,62923.0,0.000825]
[1726884370116,0.20944662,62924.0,62923.0,0.000825]
[1726884370356,0.0911,62929.0,62923.0,0.000825]
[1726884370574,0.01375682,62924.0,62923.0,0.000825]
[1726884370799,0.003,62924.0,62923.0,0.000825]
[1726884371010,0.01075682,62924.0,62923.0,0.000825]
[1726884371238,0.005,62924.0,62923.0,0.023825]
[1726884371735,0.01576542,62924.0,62923.0,0.023825]
[1726884371928,0.005,62924.0,62923.0,0.023825]
[1726884372141,0.01576542,62924.0,62923.0,0.023825]
[1726884372364,0.005,62924.0,62923.0,0.023825]
[1726884372572,0.01576542,62924.0,62923.0,0.023825]
[1726884372756,0.005,62924.0,62923.0,0.023825]
[1726884372992,0.01576542,62924.0,62923.0,0.023825]
[1726884375178,0.01576542,62924.0,62923.0,0.18687867]
[1726884375396,0.005,62924.0,62923.0,0.28687867]
[1726884375621,0.005,62924.0,62923.0,0.29005687]
[1726884376046,0.005,62924.0,62923.0,0.28687867]
[1726884376294,0.00487286,62924.0,62923.0,0.28687867]
[1726884376539,0.23838471,62939.0,62923.0,0.28687867]
[1726884376773,0.23838471,62939.0,62929.0,0.023]
[1726884376995,0.00897232,62938.0,62930.0,0.16305367]
[1726884377206,0.0788,62942.0,62931.0,0.023]
[1726884377417,0.00897234,62939.0,62933.0,0.023]
[1726884377700,0.00897234,62939.0,62935.0,0.023]
[1726884377912,0.00897234,62939.0,62937.0,0.023]
[1726884378556,0.00165,62944.0,62937.0,0.023]
[1726884378969,0.00897244,62943.0,62937.0,0.023]
[1726884380636,0.01297244,62943.0,62937.0,0.023]
[1726884382762,0.01297244,62943.0,62941.0,0.95337973]
[1726884382996,0.01297244,62943.0,62937.0,0.023]
[1726884382997,0.004,62943.0,62942.0,0.18605367]
[1726884383637,0.00165,62944.0,62943.0,0.023]
[1726884383850,0.00165,62944.0,62943.0,0.18605367]
[1726884384740,0.00665,62944.0,62943.0,0.18605367]
[1726884389417,0.00165,62944.0,62943.0,0.18605367]
[1726884389647,0.00165,62944.0,62943.0,0.18705367]
[1726884390084,0.00165,62944.0,62943.0,0.18605367]
[1726884390513,0.00165,62944.0,62943.0,0.18905367]
[1726884391405,0.01079049,62944.0,62943.0,0.18905367]
[1726884391613,0.00165,62944.0,62943.0,0.18905367]
[1726884391839,0.01079049,62944.0,62943.0,0.18905367]
[1726884392084,0.00165,62944.0,62943.0,0.18905367]
[1726884392535,0.01079049,62944.0,62943.0,0.18905367]
[1726884392747,0.00165,62944.0,62943.0,0.18605367]
[1726884393004,0.01079049,62944.0,62943.0,0.18905367]
[1726884393221,0.00165,62944.0,62943.0,0.18905367]
[1726884393435,0.01079049,62944.0,62943.0,0.18605367]
[1726884393660,0.00165,62944.0,62943.0,0.18605367]
[1726884394484,0.01079049,62944.0,62943.0,0.18605367]
[1726884396966,0.01179049,62944.0,62943.0,0.18605367]
[1726884397474,0.01179049,62944.0,62927.0,0.0963]
[1726884397717,0.01179049,62944.0,62936.0,0.23830896]
[1726884397976,0.01179049,62944.0,62937.0,0.16305367]
[1726884398906,0.01179049,62944.0,62938.0,0.023]
[1726884399146,0.01079049,62944.0,62938.0,0.023]
[1726884399373,0.01679049,62944.0,62938.0,0.023]
[1726884399954,0.01079049,62944.0,62938.0,0.023]
[1726884400320,0.01079049,62944.0,62938.0,0.024]
[1726884400612,0.0985,62943.0,62938.0,0.024]
[1726884401082,0.00918923,62942.0,62938.0,0.024]
[1726884402218,0.00918923,62942.0,62938.0,0.001]
[1726884402479,0.00918923,62942.0,62926.0,0.95328885]
[1726884402704,0.00918923,62942.0,62934.0,0.95328885]
[1726884402938,0.00918923,62942.0,62922.0,0.000825]
[1726884402939,0.18040106,62938.0,62922.0,0.000825]
[1726884403159,0.18040106,62938.0,62927.0,0.95328885]
[1726884403373,0.00914233,62937.0,62928.0,0.16305367]
[1726884403818,0.095,62940.0,62928.0,0.16305367]
[1726884404239,0.00911874,62939.0,62929.0,0.023]
[1726884404474,0.00911874,62939.0,62930.0,0.16305367]
[1726884404689,0.095,62940.0,62931.0,0.023]
[1726884406219,0.00165,62944.0,62928.0,0.008]
[1726884406220,0.18040106,62936.0,62928.0,0.008]
[1726884406448,0.1737,62935.0,62928.0,0.95328885]
[1726884406667,0.18281913,62935.0,62928.0,0.95328885]
[1726884406901,0.18281913,62935.0,62931.0,0.005]
[1726884407319,0.18281913,62935.0,62922.0,0.000825]
[1726884407533,0.1737,62935.0,62928.0,0.001]
[1726884409489,0.1737,62935.0,62927.0,0.95328885]
[1726884409698,0.1757,62935.0,62927.0,0.95328885]
[1726884410133,0.1737,62935.0,62927.0,0.95328885]
[1726884410341,0.01628857,62934.0,62927.0,0.95328885]
[1726884410547,0.1737,62935.0,62928.0,0.001]
[1726884410760,0.00902399,62933.0,62928.0,0.001]
[1726884410962,0.1737,62935.0,62927.0,0.95328885]
[1726884411175,0.00902397,62932.0,62927.0,0.95328885]
[1726884411386,0.1737,62935.0,62927.0,0.95528885]
[1726884411597,0.00902395,62931.0,62927.0,0.95528885]
[1726884411844,0.1737,62935.0,62927.0,0.95528885]
[1726884412064,0.1737,62935.0,62927.0,0.002]
[1726884412491,0.00902402,62934.0,62925.0,0.16305367]
[1726884412702,0.00902402,62934.0,62928.0,0.95328885]
[1726884412908,0.00902402,62934.0,62925.0,0.16305367]
[1726884413762,0.00902402,62934.0,62925.0,0.16605367]
[1726884414232,0.00902402,62934.0,62925.0,0.16305367]
[1726884414693,0.18040106,62928.0,62925.0,0.002]
[1726884414929,0.0937,62927.0,62925.0,0.002]
[1726884415140,0.10272393,62927.0,62925.0,0.002]
[1726884415839,0.10272393,62927.0,62922.0,0.000825]
[1726884416279,0.10272393,62927.0,62925.0,0.009]
[1726884416709,0.10272393,62927.0,62922.0,0.000825]
[1726884416922,0.10572393,62927.0,62922.0,0.000825]
[1726884417550,0.10272393,62927.0,62922.0,0.000825]
[1726884418435,0.10472393,62927.0,62922.0,0.000825]
[1726884419773,0.10272393,62927.0,62922.0,0.000825]
[1726884420197,0.10572393,62927.0,62922.0,0.000825]
[1726884420524,0.10272393,62927.0,62922.0,0.000825]
[1726884420940,0.10372393,62927.0,62922.0,0.000825]
[1726884421357,0.10272393,62927.0,62922.0,0.000825]
[1726884421950,0.10572393,62927.0,62922.0,0.000825]
[1726884422173,0.28612499,62927.0,62922.0,0.000825]
[1726884422387,0.11014751,62926.0,62922.0,0.000825]
[1726884422603,0.19715828,62925.0,62922.0,0.000825]
[1726884422820,0.29982997,62925.0,62922.0,0.000825]
[1726884423039,0.37482997,62925.0,62922.0,0.000825]
[1726884424161,0.39299053,62925.0,62922.0,0.000825]
[1726884424851,0.39299053,62925.0,62924.0,0.001826]
[1726884425077,0.39899053,62925.0,62924.0,0.001826]
[1726884425292,0.40099053,62925.0,62924.0,0.001826]
[1726884425513,0.38423331,62925.0,62924.0,0.001826]
[1726884425729,0.4010045,62925.0,62924.0,0.001826]
[1726884425947,0.3990045,62925.0,62924.0,0.001826]
[1726884426178,0.3930045,62925.0,62924.0,0.000826]
[1726884426622,0.4010045,62925.0,62924.0,0.001826]
[1726884427043,0.4010045,62925.0,62924.0,0.000826]
[1726884427044,0.3930045,62925.0,62924.0,0.000826]
[1726884427524,0.4000045,62925.0,62924.0,0.001826]
[1726884429293,0.39986745,62925.0,62924.0,0.001826]
[1726884429502,0.38170689,62925.0,62924.0,0.001826]
[1726884431923,0.03260583,62925.0,62924.0,0.001826]
[1726884432356,0.21300689,62925.0,62924.0,0.001826]
[1726884432575,0.21286952,62925.0,62924.0,0.001826]
[1726884432807,0.20586952,62925.0,62924.0,0.000826]
[1726884433235,0.20686952,62925.0,62924.0,0.000826]
[1726884433686,0.20586952,62925.0,62924.0,0.000826]
[1726884434660,0.18937275,62925.0,62924.0,0.000826]
[1726884434887,0.20592888,62925.0,62924.0,0.000826]
[1726884435316,0.30512888,62925.0,62924.0,0.000826]
[1726884435962,0.33003017,62925.0,62924.0,0.000826]
[1726884437292,0.35078049,62925.0,62924.0,0.000826]
[1726884437506,0.34878049,62925.0,62924.0,0.000826]
[1726884439475,0.33522436,62925.0,62924.0,0.000826]
[1726884439695,0.35193863,62925.0,62924.0,0.000826]
[1726884439898,0.34893863,62925.0,62924.0,0.000826]
[1726884440128,0.33518831,62925.0,62924.0,0.000826]
[1726884441587,0.33018831,62925.0,62924.0,0.000826]
[1726884441810,0.33418831,62925.0,62924.0,0.000826]
[1726884442217,0.32521662,62925.0,62924.0,0.000826]
[1726884442634,0.30850235,62925.0,62924.0,0.000826]
[1726884443050,0.32504738,62925.0,62924.0,0.000826]
[1726884450116,0.32496699,62925.0,62924.0,0.000826]
[1726884450555,0.32661899,62925.0,62924.0,0.000826]
[1726884452000,0.47385005,62925.0,62924.0,0.000826]
[1726884452215,0.42661899,62925.0,62924.0,0.000826]
[1726884452640,0.49746558,62925.0,62924.0,0.000826]
[1726884453488,0.49750053,62925.0,62924.0,0.000826]
[1726884453704,0.42665394,62925.0,62924.0,0.000826]
[1726884454331,0.75062661,62925.0,62924.0,0.000826]
[1726884454560,0.672572,62923.0,62922.0,0.000825]
[1726884454765,0.0938,62917.0,62898.0,0.00244]
[1726884454994,0.31192366,62914.0,62913.0,0.23837713]
[1726884455216,0.7518941,62914.0,62900.0,0.95369038]
[1726884455426,0.07087156,62910.0,62908.0,0.95369038]
[1726884455655,0.17955326,62909.0,62908.0,0.95369038]
[1726884455858,0.17955326,62909.0,62900.0,0.95369038]
[1726884456061,0.01649959,62908.0,62900.0,0.95369038]
[1726884456275,0.01649959,62907.0,62900.0,0.95369038]
[1726884456486,0.01649959,62906.0,62900.0,0.95369038]
[1726884456921,0.04723757,62910.0,62900.0,0.95369038]
[1726884457129,0.01641726,62906.0,62900.0,0.95369038]
[1726884457761,0.01641726,62906.0,62905.0,0.001825]
[1726884458210,0.01641726,62906.0,62905.0,0.000825]
[1726884458692,0.01641726,62906.0,62905.0,0.001825]
[1726884459593,0.22763863,62911.0,62905.0,0.001825]
[1726884459801,0.047242,62910.0,62905.0,0.001825]
[1726884460009,0.01641436,62906.0,62905.0,0.001825]
[1726884460442,0.01641897,62906.0,62905.0,0.001825]
[1726884460647,0.01641897,62909.0,62905.0,0.001825]
[1726884460861,0.01641897,62908.0,62905.0,0.001825]
[1726884461289,0.01641897,62907.0,62905.0,0.001825]
[1726884461502,0.047242,62910.0,62905.0,0.000825]
[1726884461503,0.01641897,62906.0,62905.0,0.000825]
[1726884463389,0.01641897,62906.0,62905.0,0.001825]
[1726884463853,0.11021897,62906.0,62905.0,0.001825]
[1726884464081,0.18108198,62906.0,62905.0,0.001825]
[1726884464312,0.59732685,62906.0,62905.0,0.001825]
[1726884464560,1.15872843,62906.0,62905.0,0.001825]
[1726884464779,1.15872843,62906.0,62895.0,0.000825]
[1726884464780,0.002,62896.0,62895.0,0.000825]
[1726884465035,0.5556737,62896.0,62895.0,0.23927792]
[1726884465250,0.95413328,62896.0,62895.0,0.000825]
[1726884465486,1.04852544,62896.0,62895.0,0.000825]
[1726884465731,0.5536737,62896.0,62895.0,0.000825]
[1726884466409,0.60087527,62896.0,62895.0,0.000825]
[1726884466637,0.5536737,62896.0,62895.0,0.000825]
[1726884466867,0.5636737,62896.0,62895.0,0.001825]
[1726884468013,0.11641897,62896.0,62895.0,0.000825]
[1726884468235,0.01641897,62896.0,62895.0,0.000825]
[1726884468478,0.109,62896.0,62895.0,0.001825]
[1726884468691,0.12541897,62896.0,62895.0,0.001825]